fUSD/lending_fUSD_20260524
["ID","MTS","AMOUNT","RATE_DAILY","PERIOD"]
[422906857,1779604242000,-176.96760267,0.0002349,2]
[422906850,1779604242000,-7965.41053268,0.0002349,2]
[422906860,1779604242000,-509.84717082,0.00023564,2]
[422906858,1779604242000,-174.61919141,0.0002349,2]
[422906859,1779604242000,-151.0,0.00023545,2]
[422906848,1779604242000,-1191.11104074,0.0002349,2]
[422906852,1779604242000,-200.0,0.0002349,2]
[422906846,1779604242000,-176.18954424,0.0002349,2]
[422906840,1779604242000,-152.72,0.00023443,2]
[422906844,1779604242000,-3469.25545849,0.0002349,2]
[422906856,1779604242000,-155.58479665,0.0002349,2]
[422906845,1779604242000,-347.50429698,0.0002349,2]
[422906842,1779604242000,-174.70920857,0.0002349,2]
[422906839,1779604242000,-151.73,0.0002339,2]
[422906841,1779604242000,-509.84717082,0.00023482,2]
[422906843,1779604242000,-176.51944045,0.0002349,2]
[422906838,1779604242000,-252.84,0.0002339,2]
[422906836,1779604242000,-5530.0,0.000233,3]
[422906837,1779604242000,-2236.95670847,0.00023339,2]
[422906835,1779604242000,-1630.01,0.000231,7]
[422906862,1779604242000,-5530.0,0.000236,5]
[422906855,1779604242000,-601.3376128,0.0002349,2]
[422906866,1779604242000,-500.0,0.00023709,2]
[422906851,1779604242000,-502.07339431,0.0002349,2]
[422906868,1779604242000,-500.0,0.00023775,2]
[422906890,1779604242000,-1296.5598577,0.00014527,2]
[422906884,1779604242000,-202.0,0.00024,2]
[422906885,1779604242000,-1235.18214925,0.00024038,2]
[422906888,1779604242000,-980.38,0.00024174,2]
[422906889,1779604242000,-2281.73481688,0.00024174,2]
[422906887,1779604242000,-500.0,0.0002405,2]
[422906886,1779604242000,-203.16638177,0.00024038,2]
[422906883,1779604242000,-338.0,0.00024,2]
[422906879,1779604242000,-509.84717082,0.00023903,2]
[422906876,1779604242000,-509.84717082,0.000239,2]
[422906874,1779604242000,-2319.72410669,0.00023887,2]
[422906875,1779604242000,-509.84717082,0.0002389,2]
[422906880,1779604242000,-192.0,0.00024,2]
[422906877,1779604242000,-315.0,0.000239,2]
[422906873,1779604242000,-509.84717082,0.00023885,2]
[422906870,1779604242000,-1867.08,0.00023775,2]
[422906882,1779604242000,-334.0,0.00024,2]
[422906891,1779604242000,-37.99134527,0.00020822,2]
[422906872,1779604242000,-509.84717082,0.00023863,2]
[422906881,1779604242000,-651.0,0.00024,2]
[422906871,1779604242000,-509.84717082,0.00023776,2]
[422906867,1779604242000,-500.0,0.00023775,2]
[422906864,1779604242000,-151.0,0.00023654,7]
[422906865,1779604242000,-158.14480742,0.00023655,2]
[422906869,1779604242000,-500.0,0.00023775,2]
[422906861,1779604242000,-151.0,0.000236,2]
[422906878,1779604242000,-308.0,0.000239,2]
[422906863,1779604242000,-509.84717082,0.00023624,2]
[422907197,1779604246000,-328.94700034,0.00020822,2]
[422907198,1779604246000,-698.98608645,0.00020822,2]
[422907201,1779604940000,152.0,0.00028049,120]
[422907202,1779605009000,523.34,0.00027399,120]
[422907204,1779605341000,1000.0,0.0002808,120]
[422907208,1779605365000,426.57848126,0.00028,120]
[422907209,1779605374000,213.28924063,0.00028,120]
[422907252,1779605432000,-523.34,0.00014999,2]
[422907254,1779605432000,-523.34,0.00014999,2]
[422907238,1779605432000,-500.0,0.00014999,2]
[422907235,1779605432000,-501.54002188,0.00014999,2]
[422907239,1779605432000,-500.0,0.00014999,2]
[422907240,1779605432000,-512.0093558,0.00014999,2]
[422907237,1779605432000,-500.0,0.00014999,2]
[422907241,1779605432000,-523.34,0.00014999,2]
[422907243,1779605432000,-523.34,0.00014999,2]
[422907267,1779605432000,-1612.69,0.00016922,2]
[422907269,1779605432000,-500.0,0.00017099,2]
[422907258,1779605432000,-630.62184494,0.00015938,2]
[422907271,1779605432000,-523.34,0.00017999,2]
[422907264,1779605432000,-157.18,0.00016522,2]
[422907262,1779605432000,-640.9,0.00016438,2]
[422907273,1779605432000,-230.15,0.00018012,2]
[422907266,1779605432000,-299.99,0.00016922,4]
[422907275,1779605432000,-13243.77204989,0.00018035,2]
[422907276,1779605432000,-157.18,0.00018358,2]
[422907274,1779605432000,-10503.13795011,0.00018035,2]
[422907277,1779605432000,-287.8,0.00018369,2]
[422907287,1779605432000,-150.0,0.00019258,2]
[422907250,1779605432000,-523.34,0.00014999,2]
[422907256,1779605432000,-208.8304494,0.00015058,2]
[422907246,1779605432000,-523.34,0.00014999,2]
[422907220,1779605432000,-1309.45692381,0.00013742,2]
[422907236,1779605432000,-500.0,0.00014999,2]
[422907212,1779605432000,-150.0,9.913e-05,2]
[422907211,1779605432000,-157.18,9.179e-05,2]
[422907213,1779605432000,-150.0,9.913e-05,2]
[422907214,1779605432000,-157.18,0.00011015,2]
[422907215,1779605432000,-150.0,0.00012118,2]
[422907216,1779605432000,-157.18,0.0001285,2]
[422907219,1779605432000,-863.77791036,0.00013741,2]
[422907217,1779605432000,-19.08466714,0.00013741,2]
[422907278,1779605432000,-206.16,0.00018398,2]
[422907218,1779605432000,-317.1374225,0.00013741,2]
[422907221,1779605432000,-157.18,0.00014686,2]
[422907247,1779605432000,-523.34,0.00014999,2]
[422907223,1779605432000,-150.0,0.00014998,2]
[422907226,1779605432000,-500.0,0.00014999,2]
[422907224,1779605432000,-500.0,0.00014999,2]
[422907227,1779605432000,-500.0,0.00014999,3]
[422907229,1779605432000,-500.2,0.00014999,5]
[422907228,1779605432000,-500.0,0.00014999,4]
[422907230,1779605432000,-500.0,0.00014999,2]
[422907231,1779605432000,-508.40286137,0.00014999,2]
[422907222,1779605432000,-215.34753388,0.00014798,2]
[422907233,1779605432000,-509.01520863,0.00014999,2]
[422907232,1779605432000,-500.0,0.00014999,2]
[422907234,1779605432000,-500.0,0.00014999,2]
[422907225,1779605432000,-504.29151086,0.00014999,2]
[422907279,1779605432000,-640.9,0.0001841,2]
[422907260,1779605432000,-255.0,0.00016123,2]
[422907286,1779605432000,-150.0,0.00019258,2]
[422907314,1779605432000,-150.0,0.00019495,4]
[422907310,1779605432000,-150.0,0.00019456,4]
[422907311,1779605432000,-150.0,0.00019472,4]
[422907309,1779605432000,-150.0,0.00019436,4]
[422907307,1779605432000,-409.75,0.00019431,2]
[422907313,1779605432000,-150.0,0.00019495,4]
[422907318,1779605432000,-150.0,0.00019522,4]
[422907329,1779605432000,-150.0,0.00019633,4]
[422907328,1779605432000,-150.0,0.00019614,4]
[422907330,1779605432000,-150.0,0.00019654,4]
[422907317,1779605432000,-150.0,0.00019504,4]
[422907325,1779605432000,-150.0,0.00019588,4]
[422907321,1779605432000,-150.0,0.00019566,4]
[422907320,1779605432000,-150.0,0.00019544,4]
[422907327,1779605432000,-150.0,0.00019614,4]
[422907322,1779605432000,-150.0,0.00019575,4]
[422907326,1779605432000,-150.0,0.0001961,4]
[422907323,1779605432000,-150.0,0.00019587,4]
[422907324,1779605432000,-150.0,0.00019587,4]
[422907331,1779605432000,-150.0,0.00019655,4]
[422907334,1779605432000,-150.0,0.00019677,4]
[422907335,1779605432000,-150.0,0.00019685,4]
[422907332,1779605432000,-150.0,0.00019669,4]
[422907333,1779605432000,-150.0,0.00019669,4]
[422907288,1779605432000,-150.0,0.00019258,2]
[422907312,1779605432000,-150.0,0.00019478,4]
[422907308,1779605432000,-150.0,0.00019434,4]
[422907319,1779605432000,-150.0,0.00019543,4]
[422907316,1779605432000,-150.0,0.00019504,4]
[422907289,1779605432000,-150.0,0.00019258,2]
[422907315,1779605432000,-150.0,0.000195,4]
[422907280,1779605432000,-200.0,0.00018687,2]
[422907281,1779605432000,-150.0,0.00019258,2]
[422907282,1779605432000,-150.0,0.00019258,2]
[422907285,1779605432000,-150.0,0.00019258,2]
[422907283,1779605432000,-150.0,0.00019258,2]
[422907284,1779605432000,-150.0,0.00019258,2]
[422907291,1779605432000,-173.16,0.00019283,2]
[422907294,1779605432000,-150.0,0.00019329,4]
[422907302,1779605432000,-150.0,0.000194,4]
[422907301,1779605432000,-150.0,0.0001939,4]
[422907290,1779605432000,-150.0,0.0001928,4]
[422907306,1779605432000,-150.0,0.00019422,4]
[422907305,1779605432000,-150.0,0.00019422,4]
[422907303,1779605432000,-150.0,0.00019412,4]
[422907304,1779605432000,-150.0,0.00019416,4]
[422907299,1779605432000,-150.0,0.00019368,4]
[422907300,1779605432000,-354.84,0.00019371,2]
[422907297,1779605432000,-150.0,0.0001934,4]
[422907293,1779605432000,-150.0,0.00019324,4]
[422907298,1779605432000,-150.0,0.00019346,4]
[422907296,1779605432000,-150.0,0.0001934,4]
[422907292,1779605432000,-150.0,0.00019302,4]
[422907295,1779605432000,-150.0,0.00019337,4]
[422907374,1779605433000,-155.0,0.0002,2]
[422907382,1779605433000,-359.0,0.0002,2]
[422907383,1779605433000,-214.0,0.0002,2]
[422907376,1779605433000,-176.04808047,0.0002,2]
[422907371,1779605433000,-523.34,0.00019999,2]
[422907362,1779605433000,-150.0,0.00019941,4]
[422907372,1779605433000,-204.0,0.0002,2]
[422907367,1779605433000,-150.0,0.00019971,4]
[422907366,1779605433000,-150.0,0.00019971,4]
[422907380,1779605433000,-176.0480805,0.0002,2]
[422907364,1779605433000,-150.0,0.00019971,4]
[422907373,1779605433000,-712.0,0.0002,2]
[422907379,1779605433000,-176.04808047,0.0002,2]
[422907393,1779605433000,-150.0,0.00020081,4]
[422907377,1779605433000,-176.04808047,0.0002,2]
[422907378,1779605433000,-176.04808047,0.0002,2]
[422907381,1779605433000,-155.0,0.0002,2]
[422907384,1779605433000,-154.0,0.0002,2]
[422907388,1779605433000,-150.0,0.00020042,4]
[422907386,1779605433000,-150.0,0.00020008,4]
[422907387,1779605433000,-150.0,0.0002003,4]
[422907385,1779605433000,-2669.0,0.0002,2]
[422907389,1779605433000,-150.0,0.0002005,4]
[422907390,1779605433000,-150.0,0.00020052,4]
[422907395,1779605433000,-150.0,0.00020113,4]
[422907361,1779605433000,-150.0,0.00019919,4]
[422907375,1779605433000,-353.0,0.0002,2]
[422907363,1779605433000,-150.0,0.00019963,4]
[422907341,1779605433000,-150.0,0.00019751,4]
[422907368,1779605433000,-150.0,0.00019985,4]
[422907398,1779605433000,-487.0,0.00020129,2]
[422907339,1779605433000,-150.0,0.00019733,4]
[422907343,1779605433000,-150.0,0.00019757,4]
[422907338,1779605433000,-150.0,0.00019733,4]
[422907336,1779605433000,-150.0,0.00019699,4]
[422907342,1779605433000,-150.0,0.00019751,4]
[422907337,1779605433000,-150.0,0.00019721,4]
[422907344,1779605433000,-150.0,0.00019765,4]
[422907340,1779605433000,-150.0,0.00019743,4]
[422907346,1779605433000,-150.0,0.00019792,4]
[422907356,1779605433000,-150.0,0.00019897,4]
[422907357,1779605433000,-500.0,0.00019899,2]
[422907345,1779605433000,-150.0,0.00019787,4]
[422907354,1779605433000,-150.0,0.00019875,4]
[422907347,1779605433000,-150.0,0.00019809,4]
[422907349,1779605433000,-150.0,0.00019828,4]
[422907350,1779605433000,-150.0,0.00019831,4]
[422907355,1779605433000,-150.0,0.00019892,4]
[422907353,1779605433000,-150.0,0.00019853,4]
[422907351,1779605433000,-150.0,0.00019834,4]
[422907352,1779605433000,-150.0,0.00019834,4]
[422907348,1779605433000,-150.0,0.00019812,4]
[422907359,1779605433000,-150.0,0.00019916,4]
[422907358,1779605433000,-150.0,0.00019899,4]
[422907360,1779605433000,-150.0,0.00019916,4]
[422907370,1779605433000,-150.0,0.00019998,4]
[422907369,1779605433000,-150.0,0.00019998,4]
[422907365,1779605433000,-150.0,0.00019971,4]
[422907397,1779605433000,-150.0,0.00020129,4]
[422907439,1779605433000,-150.0,0.0002047,4]
[422907394,1779605433000,-150.0,0.00020096,4]
[422907429,1779605433000,-640.9,0.00020381,2]
[422907431,1779605433000,-150.0,0.00020399,4]
[422907433,1779605433000,-150.0,0.0002041,4]
[422907438,1779605433000,-150.0,0.00020449,4]
[422907435,1779605433000,-150.0,0.00020427,4]
[422907428,1779605433000,-150.0,0.00020367,4]
[422907432,1779605433000,-150.0,0.00020405,4]
[422907430,1779605433000,-150.0,0.00020383,4]
[422907434,1779605433000,-150.0,0.0002041,4]
[422907436,1779605433000,-150.0,0.00020446,4]
[422907437,1779605433000,-150.0,0.00020446,4]
[422907451,1779605433000,-150.0,0.00020526,4]
[422907427,1779605433000,-150.0,0.0002036,4]
[422907440,1779605433000,-150.0,0.00020471,4]
[422907450,1779605433000,-150.0,0.00020515,4]
[422907443,1779605433000,-150.0,0.00020493,4]
[422907444,1779605433000,-150.0,0.00020506,4]
[422907446,1779605433000,-497.68995271,0.00020511,2]
[422907445,1779605433000,-500.0,0.00020511,2]
[422907449,1779605433000,-523.34,0.00020511,2]
[422907447,1779605433000,-523.34,0.00020511,2]
[422907448,1779605433000,-523.34,0.00020511,2]
[422907452,1779605433000,-150.0,0.00020537,4]
[422907454,1779605433000,-150.0,0.00020559,4]
[422907392,1779605433000,-150.0,0.00020081,4]
[422907453,1779605433000,-150.0,0.00020541,4]
[422907442,1779605433000,-150.0,0.00020492,4]
[422907422,1779605433000,-150.0,0.00020327,4]
[422907441,1779605433000,-150.0,0.00020492,4]
[422907420,1779605433000,-150.0,0.00020316,4]
[422907391,1779605433000,-150.0,0.00020074,4]
[422907424,1779605433000,-150.0,0.00020327,4]
[422907399,1779605433000,-487.0,0.00020129,2]
[422907401,1779605433000,-150.0,0.0002014,4]
[422907400,1779605433000,-759.63,0.00020129,2]
[422907402,1779605433000,-150.0,0.00020149,4]
[422907404,1779605433000,-150.0,0.00020163,4]
[422907406,1779605433000,-150.0,0.00020184,4]
[422907396,1779605433000,-150.0,0.00020118,4]
[422907414,1779605433000,-150.0,0.0002025,4]
[422907413,1779605433000,-150.0,0.00020245,4]
[422907409,1779605433000,-150.0,0.00020209,4]
[422907410,1779605433000,-150.0,0.00020209,4]
[422907403,1779605433000,-150.0,0.00020162,4]
[422907405,1779605433000,-150.0,0.00020163,4]
[422907423,1779605433000,-150.0,0.00020327,4]
[422907418,1779605433000,-150.0,0.00020293,4]
[422907408,1779605433000,-150.0,0.00020206,4]
[422907425,1779605433000,-150.0,0.00020327,4]
[422907417,1779605433000,-150.0,0.00020288,4]
[422907419,1779605433000,-150.0,0.00020294,4]
[422907415,1779605433000,-150.0,0.00020256,4]
[422907421,1779605433000,-150.0,0.00020327,4]
[422907416,1779605433000,-150.0,0.00020272,4]
[422907411,1779605433000,-150.0,0.00020228,4]
[422907412,1779605433000,-150.0,0.00020245,4]
[422907407,1779605433000,-150.0,0.00020185,4]
[422907426,1779605433000,-150.0,0.00020338,4]
[422907497,1779605434000,-150.0,0.00020898,4]
[422907492,1779605434000,-150.0,0.00020843,4]
[422907496,1779605434000,-150.0,0.0002089,4]
[422907500,1779605434000,-150.0,0.00020912,4]
[422907494,1779605434000,-150.0,0.00020862,4]
[422907493,1779605434000,-150.0,0.00020846,4]
[422907486,1779605434000,-150.0,0.00020802,4]
[422907502,1779605434000,-150.0,0.00020922,4]
[422907501,1779605434000,-150.0,0.00020922,4]
[422907490,1779605434000,-150.0,0.00020824,4]
[422907491,1779605434000,-150.0,0.00020827,4]
[422907481,1779605434000,-150.0,0.00020763,4]
[422907495,1779605434000,-150.0,0.00020868,4]
[422907498,1779605434000,-150.0,0.00020903,4]
[422907514,1779605434000,-14021.39,0.00020951,2]
[422907504,1779605434000,-151.0,0.0002094,2]
[422907508,1779605434000,-151.0,0.0002094,2]
[422907515,1779605434000,-150.0,0.00020956,4]
[422907509,1779605434000,-151.0,0.0002094,2]
[422907506,1779605434000,-151.0,0.0002094,2]
[422907512,1779605434000,-151.0,0.0002094,2]
[422907503,1779605434000,-150.0,0.00020934,4]
[422907505,1779605434000,-200.0,0.0002094,2]
[422907511,1779605434000,-151.0,0.0002094,2]
[422907510,1779605434000,-1734.62772924,0.0002094,2]
[422907513,1779605434000,-219.79815383,0.0002094,2]
[422907507,1779605434000,-151.0,0.0002094,2]
[422907484,1779605434000,-1795.14331547,0.000208,2]
[422907517,1779605434000,-150.0,0.00020978,4]
[422907499,1779605434000,-150.0,0.00020903,4]
[422907485,1779605434000,-1248.88371897,0.000208,2]
[422907463,1779605434000,-150.0,0.00020605,4]
[422907483,1779605434000,-455.79293607,0.000208,2]
[422907527,1779605434000,-359.0,0.00021,2]
[422907462,1779605434000,-150.0,0.00020603,4]
[422907455,1779605434000,-150.0,0.00020574,4]
[422907461,1779605434000,-1248.88371897,0.000206,2]
[422907464,1779605434000,-150.0,0.00020613,4]
[422907457,1779605434000,-150.0,0.00020581,4]
[422907459,1779605434000,-455.79293607,0.000206,2]
[422907460,1779605434000,-1795.14331547,0.000206,2]
[422907456,1779605434000,-150.0,0.00020574,4]
[422907458,1779605434000,-1832.9781872,0.00020599,2]
[422907466,1779605434000,-150.0,0.00020647,4]
[422907476,1779605434000,-150.0,0.00020735,4]
[422907465,1779605434000,-150.0,0.00020625,4]
[422907467,1779605434000,-150.0,0.00020657,4]
[422907468,1779605434000,-150.0,0.00020657,4]
[422907473,1779605434000,-150.0,0.00020684,4]
[422907475,1779605434000,-150.0,0.00020713,4]
[422907472,1779605434000,-150.0,0.00020684,4]
[422907470,1779605434000,-150.0,0.00020684,4]
[422907471,1779605434000,-150.0,0.00020684,4]
[422907474,1779605434000,-150.0,0.00020691,4]
[422907469,1779605434000,-150.0,0.00020669,4]
[422907478,1779605434000,-150.0,0.00020739,4]
[422907488,1779605434000,-150.0,0.00020821,4]
[422907489,1779605434000,-230.63542564,0.00020822,2]
[422907479,1779605434000,-150.0,0.00020755,4]
[422907477,1779605434000,-150.0,0.00020739,4]
[422907480,1779605434000,-150.0,0.00020758,4]
[422907482,1779605434000,-150.0,0.0002078,4]
[422907487,1779605434000,-150.0,0.00020821,4]
[422907528,1779605434000,-214.0,0.00021,2]
[422907565,1779605434000,-2934.2561,0.00021243,2]
[422907516,1779605434000,-150.0,0.00020969,4]
[422907553,1779605434000,-150.0,0.00021177,4]
[422907551,1779605434000,-150.0,0.0002116,4]
[422907557,1779605434000,-194.63575793,0.000212,2]
[422907556,1779605434000,-150.0,0.00021199,4]
[422907567,1779605434000,-150.0,0.00021255,4]
[422907568,1779605434000,-150.0,0.00021265,4]
[422907559,1779605434000,-150.0,0.00021219,4]
[422907560,1779605434000,-150.0,0.00021221,4]
[422907563,1779605434000,-150.0,0.00021239,4]
[422907558,1779605434000,-500.0,0.0002121,2]
[422907562,1779605434000,-150.0,0.00021233,4]
[422907561,1779605434000,-150.0,0.00021233,4]
[422907566,1779605434000,-152.0,0.00021248,2]
[422907570,1779605434000,-150.0,0.00021287,4]
[422907569,1779605434000,-18084.37,0.00021273,2]
[422907573,1779605434000,-1248.88371897,0.000213,2]
[422907577,1779605434000,-5000.0,0.000213,2]
[422907572,1779605434000,-1795.14331547,0.000213,2]
[422907581,1779605434000,-150.0,0.00021318,4]
[422907579,1779605434000,-150.0,0.00021315,4]
[422907571,1779605434000,-455.79293607,0.000213,2]
[422907575,1779605434000,-2500.0,0.000213,2]
[422907580,1779605434000,-150.0,0.00021315,4]
[422907576,1779605434000,-8734.65065869,0.000213,2]
[422907574,1779605434000,-349.3658206,0.000213,2]
[422907578,1779605434000,-150.0,0.00021309,4]
[422907582,1779605434000,-150.0,0.00021326,4]
[422907583,1779605434000,-150.0,0.00021331,4]
[422907519,1779605434000,-150.0,0.00020986,4]
[422907552,1779605434000,-150.0,0.0002116,4]
[422907549,1779605434000,-150.0,0.0002115,4]
[422907564,1779605434000,-150.0,0.00021243,4]
[422907550,1779605434000,-150.0,0.00021155,4]
[422907529,1779605434000,-10000.0,0.00021,3]
[422907526,1779605434000,-168.0,0.00021,2]
[422907548,1779605434000,-150.0,0.0002115,4]
[422907518,1779605434000,-150.0,0.00020986,4]
[422907520,1779605434000,-523.34,0.00020989,2]
[422907522,1779605434000,-204.0,0.00021,2]
[422907524,1779605434000,-155.0,0.00021,2]
[422907525,1779605434000,-353.0,0.00021,2]
[422907523,1779605434000,-712.0,0.00021,2]
[422907532,1779605434000,-150.0,0.00021001,4]
[422907531,1779605434000,-150.0,0.00021,4]
[422907530,1779605434000,-168.60438977,0.00021,2]
[422907541,1779605434000,-150.0,0.00021088,4]
[422907538,1779605434000,-150.0,0.00021068,4]
[422907535,1779605434000,-150.0,0.00021041,4]
[422907521,1779605434000,-523.34,0.00020989,2]
[422907537,1779605434000,-150.0,0.00021066,4]
[422907534,1779605434000,-150.0,0.00021041,4]
[422907547,1779605434000,-150.0,0.00021133,4]
[422907543,1779605434000,-1795.14331547,0.000211,2]
[422907545,1779605434000,-150.0,0.0002111,4]
[422907555,1779605434000,-9389.7512582,0.00021187,2]
[422907544,1779605434000,-1248.88371897,0.000211,2]
[422907546,1779605434000,-150.0,0.00021112,4]
[422907542,1779605434000,-455.79293607,0.000211,2]
[422907539,1779605434000,-150.0,0.00021068,4]
[422907536,1779605434000,-150.0,0.00021044,4]
[422907533,1779605434000,-150.0,0.00021022,4]
[422907554,1779605434000,-150.0,0.00021183,4]
[422907540,1779605434000,-150.0,0.0002108,4]
[422907597,1779605435000,-295.6933488,0.00021397,4]
[422907596,1779605435000,-154.04729316,0.00021397,4]
[422907599,1779605435000,-500.0,0.00021399,2]
[422907601,1779605435000,-500.0,0.00021399,2]
[422907600,1779605435000,-500.0,0.00021399,2]
[422907602,1779605435000,-500.0,0.00021399,2]
[422907604,1779605435000,-500.0,0.00021399,2]
[422907608,1779605435000,-500.0,0.00021399,2]
[422907594,1779605435000,-153.24753908,0.00021397,4]
[422907618,1779605435000,-500.0,0.00021399,2]
[422907603,1779605435000,-500.0,0.00021399,2]
[422907598,1779605435000,-500.0,0.00021399,2]
[422907588,1779605435000,-151.0,0.00021397,2]
[422907605,1779605435000,-500.0,0.00021399,2]
[422907595,1779605435000,-150.59932888,0.00021397,4]
[422907592,1779605435000,-151.12453134,0.00021397,4]
[422907591,1779605435000,-152.9798762,0.00021397,4]
[422907590,1779605435000,-155.57247346,0.00021397,4]
[422907585,1779605435000,-150.0,0.00021375,4]
[422907589,1779605435000,-151.67691093,0.00021397,4]
[422907593,1779605435000,-150.37713029,0.00021397,4]
[422907586,1779605435000,-174.33372525,0.0002139,2]
[422907584,1779605435000,-150.0,0.00021353,4]
[422907609,1779605435000,-500.0,0.00021399,2]
[422907606,1779605435000,-500.0,0.00021399,2]
[422907613,1779605435000,-512.90149944,0.00021399,2]
[422907587,1779605435000,-151.0,0.00021397,2]
[422907607,1779605435000,-500.0,0.00021399,2]
[422907637,1779605435000,-22450.37264909,0.000214,2]
[422907635,1779605435000,-500.0,0.00021399,2]
[422907634,1779605435000,-1555.9,0.00021399,2]
[422907636,1779605435000,-598.15296991,0.00021399,2]
[422907632,1779605435000,-1555.9,0.00021399,2]
[422907638,1779605435000,-812.72909944,0.000214,2]
[422907633,1779605435000,-1555.9,0.00021399,2]
[422907631,1779605435000,-1555.9,0.00021399,2]
[422907627,1779605435000,-1555.9,0.00021399,2]
[422907629,1779605435000,-1555.9,0.00021399,2]
[422907626,1779605435000,-1555.9,0.00021399,2]
[422907628,1779605435000,-1555.9,0.00021399,2]
[422907624,1779605435000,-500.0,0.00021399,2]
[422907622,1779605435000,-500.0,0.00021399,2]
[422907612,1779605435000,-500.0,0.00021399,2]
[422907615,1779605435000,-500.0,0.00021399,2]
[422907610,1779605435000,-500.0,0.00021399,2]
[422907625,1779605435000,-1555.9,0.00021399,2]
[422907611,1779605435000,-500.0,0.00021399,2]
[422907616,1779605435000,-500.0,0.00021399,2]
[422907617,1779605435000,-500.0,0.00021399,2]
[422907630,1779605435000,-1555.9,0.00021399,2]
[422907619,1779605435000,-500.0,0.00021399,2]
[422907621,1779605435000,-500.0,0.00021399,2]
[422907623,1779605435000,-500.0,0.00021399,2]
[422907620,1779605435000,-500.0,0.00021399,2]
[422907614,1779605435000,-508.72140092,0.00021399,2]
[422907640,1779605438000,-237.27894061,0.00012128,2]
[422907643,1779605438000,-299.99,0.000214,2]
[422907642,1779605438000,-766.87095239,0.000214,2]
[422907641,1779605438000,-112.5218094,0.00012128,2]
[422907639,1779605438000,-150.0,0.00010012,2]
[422907699,1779605441000,-60369.96852238,0.000214,2]
[422907708,1779605443000,-300.69771824,0.000214,2]
[422907706,1779605443000,-39420.50084933,0.000214,2]
[422907707,1779605443000,-802.82452531,0.000214,2]
[422907844,1779605447000,-1394.29459015,0.000214,2]
[422907843,1779605447000,-402.56,0.000214,2]
[422907842,1779605447000,-279.458431,0.000214,2]
[422907841,1779605447000,-2008.6881515,0.000214,2]
[422907839,1779605447000,-1454.34702,0.000214,2]
[422907838,1779605447000,-2586.23792601,0.000214,2]
[422907836,1779605447000,-605.53870129,0.000214,2]
[422907840,1779605447000,-845.0235,0.000214,2]
[422907837,1779605447000,-1000.88383104,0.000214,2]
[422907834,1779605447000,-376317.03817691,0.000214,2]
[422907835,1779605447000,-8889.31006729,0.000214,2]
[422907854,1779605607000,207.606545,0.00023798,120]
[422907855,1779605736000,199.623481,0.00023691,120]
[422907856,1779605760000,351.686439,0.0002302,120]
[422907857,1779605970000,191.94,8.524e-05,2]
[422907858,1779606092000,500.0,0.00027399,120]
[422907859,1779606278000,-191.94,8.973e-05,2]
[422907860,1779606278000,-191.94,9.421e-05,2]
[422907861,1779606278000,-191.94,9.87e-05,2]